fUST/lending_fUST_20250420
["ID","MTS","AMOUNT","RATE_DAILY","PERIOD"]
[358427189,1745135444926,-178.4277496,0.000199,2]
[358427190,1745135444937,-151.0,0.000199,2]
[358427191,1745135444947,-4741.24319729,0.000199,2]
[358427192,1745135444956,-420.58168056,0.00019972,2]
[358427193,1745135444966,-500.19179134,0.00019973,2]
[358427194,1745135444976,-500.0,0.00019973,2]
[358427195,1745135444987,-500.62860642,0.00019973,2]
[358427196,1745135444997,-500.0,0.00019973,2]
[358427197,1745135445007,-500.0,0.00019973,2]
[358427198,1745135445017,-500.0,0.00019973,2]
[358427199,1745135445028,-500.0,0.00019973,2]
[358427200,1745135445038,-500.0,0.00019973,2]
[358427201,1745135445255,-500.0,0.00019973,2]
[358427202,1745135445267,-160.29634398,0.00019973,2]
[358427203,1745135445277,-160.69422382,0.00019973,2]
[358427204,1745135445286,-160.0,0.00019975,2]
[358427205,1745135445295,-160.0,0.00019975,2]
[358427206,1745135445305,-839.54484285,0.00019975,2]
[358427207,1745135445314,-160.0,0.00019975,2]
[358427208,1745135445324,-12565.32410885,0.00019975,2]
[358427209,1745135445334,-160.0,0.00019975,2]
[358427210,1745135445344,-160.0,0.00019975,2]
[358427211,1745135445354,-160.0,0.00019975,2]
[358427212,1745135445363,-438.93130785,0.00019998,2]
[358427213,1745135445372,-180.19,0.0002,9]
[358427214,1745135445382,-773.0,0.0002,7]
[358427215,1745135445391,-200.0,0.0002,2]
[358427216,1745135445401,-41270.0,0.0002,2]
[358427217,1745135445411,-672.58429472,0.0002,3]
[358427218,1745135445421,-1348.87158136,0.0002,2]
[358427219,1745135445431,-7142.0,0.0002,10]
[358427220,1745135445441,-1100.3450829,0.0002,2]
[358427221,1745135445450,-7000.0,0.0002,3]
[358427222,1745135445461,-3921.1950592,0.0002,3]
[358427223,1745135445647,-10766.38063182,0.0002,3]
[358427224,1745135445659,-1705.04698977,0.0002,3]
[358427225,1745135445785,-380.371951,0.00019178,2]
[358427226,1745135445816,-124.40303716,0.00019178,2]
[358427227,1745135445826,-510.8606809,0.00019178,2]
[358427228,1745135445836,-60.35096599,0.0002,3]
[358427229,1745135445911,-854.32238413,0.0002,3]
[358427230,1745135445921,-21759.97400964,0.0002,2]
[358427231,1745135445935,-24647.30845188,0.0002,2]
[358427237,1745135446648,-500.0,0.00019178,2]
[358427238,1745135446658,-500.0,0.00019452,2]
[358427239,1745135446668,-500.0,0.00019726,2]
[358427240,1745135446678,-5110.19845552,0.0002,2]
[358427241,1745135446690,-726.01672752,0.0002,2]
[358427242,1745135446699,-118.98327248,0.0002,2]
[358427243,1745135446710,-307.32000001,0.0002,2]
[358427244,1745135446722,-575.52768512,0.0002,2]
[358427245,1745135446731,-820.0,0.0002,2]
[358427246,1745135446741,-632.60831427,0.0002,2]
[358427247,1745135446750,-160.0,0.0002,3]
[358427248,1745135446759,-500.0,0.0002,2]
[358427249,1745135446769,-132.86020619,0.0002,2]
[358427252,1745135463556,56448.19822323,0.00018,2]
[358427253,1745135463583,621.20125748,0.00018,2]
[358427254,1745135493851,333.01870165,0.00017973,2]
[358427256,1745135521146,10000.0,0.00018,2]
[358427263,1745135552751,250.0,0.00017972,2]
[358427264,1745135597086,5000.0,0.00016807,2]
[358427265,1745135597302,1091.35489805,0.00016,2]
[358427268,1745135668162,300.0,0.00018,14]
[358427299,1745136335658,240.419686,0.00017993,2]
[358427378,1745136632735,-1598.10117584,0.00018921,2]
[358427379,1745136632745,-3799.33340647,0.00018941,2]
[358427380,1745136632756,-300.0,0.00018976,2]
[358427381,1745136632766,-300.0,0.00018976,2]
[358427382,1745136632777,-300.0,0.00018976,2]
[358427383,1745136632787,-5368.55424396,0.00018977,2]
[358427384,1745136632797,-500.0,0.00018977,2]
[358427385,1745136632807,-311.905,0.00018977,2]
[358427386,1745136632817,-500.0,0.00018977,2]
[358427387,1745136632827,-500.0,0.00018977,2]
[358427388,1745136632837,-500.0,0.00018977,2]
[358427389,1745136632847,-500.0,0.00018977,2]
[358427390,1745136632858,-500.0,0.00018977,2]
[358427391,1745136632867,-500.0,0.00018977,2]
[358427392,1745136632878,-241.51662899,0.00018977,2]
[358427393,1745136632887,-606.43787577,0.00018978,2]
[358427420,1745136646844,-6190.32824687,0.00018978,2]
[358427551,1745137831945,-151.0,0.00018866,2]
[358427552,1745137831954,-154.7763476,0.00018866,2]
[358427563,1745137838101,-260.0236524,0.00018866,2]
[358427564,1745137838113,-300.0,0.00018876,2]
[358427565,1745137838123,-106.65898985,0.00018876,2]
[358427566,1745137838209,-193.34101015,0.00018876,2]
[358427567,1745137838219,-300.0,0.00018876,2]
[358427568,1745137838229,-1638.74999611,0.00018877,2]
[358427569,1745137838240,-307.12206069,0.00018877,2]
[358427570,1745137838251,-500.0,0.00018877,2]
[358427571,1745137838261,-500.0,0.00018877,2]
[358427572,1745137838271,-500.0,0.00018877,2]
[358427573,1745137838281,-510.68449742,0.00018877,2]
[358427574,1745137838291,-500.0,0.00018877,2]
[358427575,1745137838300,-500.0,0.00018877,2]
[358427576,1745137838311,-500.0,0.00018877,2]
[358427577,1745137838320,-500.0,0.00018877,2]
[358427578,1745137838330,-500.0,0.00018877,2]
[358427579,1745137838339,-631.18761393,0.00018877,2]
[358427581,1745137838349,-500.0,0.00018877,2]
[358427583,1745137838358,-250.0,0.00018877,2]
[358427584,1745137838369,-2175.00288991,0.00018877,3]
[358427585,1745137838378,-3830.25209923,0.00018878,2]
[358427602,1745137843309,-609.77115525,0.00018878,2]
[358427616,1745137846170,-98839.3920082,0.00018878,2]
[358427617,1745137846181,-284476.4530585,0.00018878,2]
[358427618,1745137846190,-160.0,0.00019,5]
[358427619,1745137846199,-4870.05222515,0.00019,2]
[358427620,1745137846208,-500.0,0.00019041,2]
[358427621,1745137846218,-160.0,0.00019091,2]
[358427622,1745137846227,-174.6476221,0.000191,2]
[358427623,1745137846236,-154.257,0.00019171,2]
[358427624,1745137846245,-500.0,0.00019173,2]
[358427625,1745137846254,-500.0,0.00019173,2]
[358427626,1745137846263,-500.0,0.00019173,2]
[358427627,1745137846272,-500.0,0.00019173,2]
[358427628,1745137846282,-500.0,0.00019178,2]
[358427629,1745137846291,-500.0,0.00019178,2]
[358427630,1745137846300,-500.0,0.00019178,2]
[358427631,1745137846310,-500.0,0.00019178,2]
[358427632,1745137846319,-500.0,0.00019178,2]
[358427633,1745137846328,-500.0,0.00019178,2]
[358427634,1745137846338,-500.0,0.00019178,2]
[358427635,1745137846347,-500.0,0.00019178,2]
[358427636,1745137846357,-164.66713204,0.00019178,2]
[358427637,1745137846366,-599.69,0.00019178,2]
[358427638,1745137846376,-500.0,0.00019178,2]
[358427639,1745137846385,-500.0,0.00019178,2]
[358427640,1745137846395,-500.0,0.00019178,2]
[358427641,1745137846404,-504.75229508,0.00019178,2]
[358427642,1745137846414,-500.0,0.00019178,2]
[358427643,1745137846423,-500.0,0.00019178,2]
[358427644,1745137846433,-506.80405601,0.00019178,2]
[358427645,1745137846442,-510.6991842,0.00019178,2]
[358427646,1745137846451,-500.0,0.00019178,2]
[358427647,1745137846461,-510.11380176,0.00019178,2]
[358427648,1745137846471,-508.46380295,0.00019178,2]
[358427649,1745137846481,-500.0,0.00019178,2]
[358427650,1745137846490,-504.12791805,0.00019178,2]
[358427651,1745137846500,-500.0,0.00019178,2]
[358427652,1745137846509,-500.0,0.00019178,2]
[358427653,1745137846519,-505.24480996,0.00019178,2]
[358427654,1745137846528,-509.29482011,0.00019178,2]
[358427655,1745137846537,-575.85,0.00019178,2]
[358427656,1745137846546,-503.7637239,0.00019178,2]
[358427657,1745137846556,-508.8587129,0.00019178,2]
[358427658,1745137846565,-500.0,0.00019178,2]
[358427659,1745137846574,-507.90513837,0.00019178,2]
[358427660,1745137846584,-506.51546758,0.00019178,2]
[358427661,1745137846593,-503.79725217,0.00019178,2]
[358427662,1745137846602,-500.0,0.00019178,2]
[358427663,1745137846611,-432.44865547,0.00019178,2]
[358427664,1745137846621,-600.25,0.00019178,2]
[358427665,1745137846631,-500.0,0.00019178,2]
[358427666,1745137846641,-500.0,0.00019178,2]
[358427667,1745137846650,-746.29,0.00019178,2]
[358427668,1745137846659,-500.0,0.00019178,2]
[358427669,1745137846669,-500.0,0.00019178,2]
[358427670,1745137846679,-500.0,0.00019178,2]
[358427671,1745137846689,-500.0,0.00019178,2]
[358427672,1745137846698,-500.0,0.00019178,2]
[358427673,1745137846707,-500.0,0.00019178,2]
[358427674,1745137846717,-500.0,0.00019178,2]
[358427675,1745137846727,-500.0,0.00019178,2]
[358427676,1745137846737,-1012.97,0.00019178,2]
[358427677,1745137846745,-500.0,0.00019178,2]
[358427678,1745137846757,-500.0,0.00019178,2]
[358427679,1745137846767,-500.0,0.00019178,2]
[358427680,1745137846776,-500.0,0.00019178,2]
[358427681,1745137846786,-500.0,0.00019178,2]
[358427682,1745137846795,-500.0,0.00019178,2]
[358427683,1745137846804,-500.0,0.00019178,2]
[358427684,1745137846813,-500.0,0.00019178,2]
[358427685,1745137846823,-500.0,0.00019178,2]
[358427686,1745137846832,-500.0,0.00019178,2]
[358427687,1745137846840,-769.15,0.00019178,2]
[358427688,1745137846851,-500.0,0.00019178,2]
[358427689,1745137846862,-500.0,0.00019178,2]
[358427690,1745137846871,-500.0,0.00019178,2]
[358427691,1745137846880,-514.39747575,0.00019178,2]
[358427692,1745137846889,-500.0,0.00019178,2]
[358427693,1745137846898,-500.0,0.00019178,2]
[358427694,1745137846908,-500.0,0.00019178,2]
[358427695,1745137846917,-500.0,0.00019178,2]
[358427696,1745137846926,-500.0,0.00019178,2]
[358427697,1745137846937,-500.0,0.00019178,2]
[358427698,1745137846947,-500.0,0.00019178,2]
[358427699,1745137846957,-500.0,0.00019178,2]
[358427700,1745137846966,-500.0,0.00019178,2]
[358427701,1745137846976,-500.0,0.00019178,2]
[358427702,1745137846986,-534.47,0.00019178,2]
[358427703,1745137846995,-500.0,0.00019178,2]
[358427704,1745137847004,-500.0,0.00019178,2]
[358427705,1745137847013,-500.0,0.00019178,2]
[358427706,1745137847022,-574.54,0.00019178,2]
[358427707,1745137847032,-500.0,0.00019178,2]
[358427708,1745137847041,-500.0,0.00019178,2]
[358427709,1745137847050,-500.0,0.00019178,2]
[358427710,1745137847059,-500.0,0.00019178,2]
[358427711,1745137847068,-500.0,0.00019178,2]
[358427712,1745137847077,-562.16,0.00019178,2]
[358427713,1745137847087,-597.55,0.00019178,2]
[358427714,1745137847096,-1850.96,0.00019178,2]
[358427715,1745137847105,-500.0,0.00019178,2]
[358427716,1745137847114,-500.0,0.00019178,2]
[358427717,1745137847123,-384.31536856,0.00019178,2]
[358427718,1745137847133,-513.92,0.00019178,2]
[358427719,1745137847142,-597.18600249,0.00019178,2]
[358427720,1745137847151,-500.0,0.00019178,2]
[358427721,1745137847160,-500.0,0.00019178,2]
[358427722,1745137847170,-500.0,0.00019178,2]
[358427723,1745137847179,-890.23,0.00019178,2]
[358427724,1745137847189,-500.0,0.00019178,2]
[358427725,1745137847198,-1566.08,0.00019178,2]
[358427726,1745137847207,-500.0,0.00019178,2]
[358427727,1745137847217,-500.0,0.00019178,2]
[358427728,1745137847227,-500.0,0.00019178,2]
[358427729,1745137847236,-576.47,0.00019178,2]
[358427730,1745137847246,-500.0,0.00019178,2]
[358427731,1745137847256,-1427.69,0.00019178,2]
[358427732,1745137847267,-2339.51,0.00019178,2]
[358427733,1745137847276,-5319.72,0.00019178,2]
[358427734,1745137847285,-500.0,0.00019178,2]
[358427735,1745137847295,-500.65,0.00019178,2]
[358427736,1745137847304,-500.0,0.00019178,2]
[358427737,1745137847314,-744.31,0.00019178,2]
[358427738,1745137847323,-151.0,0.00019178,2]
[358427739,1745137847333,-500.0,0.00019178,2]
[358427740,1745137847342,-607.8,0.00019178,2]
[358427741,1745137847351,-500.0,0.00019178,2]
[358427742,1745137847361,-500.0,0.00019178,2]
[358427743,1745137847371,-548.73,0.00019178,2]
[358427744,1745137847380,-151.0,0.00019178,2]
[358427745,1745137847390,-500.0,0.00019178,2]
[358427746,1745137847400,-151.0,0.00019178,2]
[358427747,1745137847566,-500.0,0.00019178,2]
[358427748,1745137847577,-500.0,0.00019178,2]
[358427749,1745137847587,-500.0,0.00019178,2]
[358427750,1745137847597,-1919.08,0.00019178,2]
[358427751,1745137847606,-500.0,0.00019178,2]
[358427752,1745137847616,-500.0,0.00019178,2]
[358427753,1745137847624,-801.96,0.00019178,2]
[358427754,1745137847633,-500.0,0.00019178,2]
[358427755,1745137847642,-656.71,0.00019178,2]
[358427756,1745137847651,-500.0,0.00019178,2]
[358427757,1745137847660,-500.0,0.00019178,2]
[358427758,1745137847669,-3044.4952782,0.00019178,2]
[358427759,1745137847684,-847.0,0.00019178,2]
[358427761,1745138133916,842.39636742,0.00018,2]
[358427765,1745138630786,1000.0,0.00018,2]
[358427769,1745138735870,1000.0,0.00018,3]
[358427771,1745138795698,1000.0,0.00018,4]
[358427791,1745139032052,-238.92964793,0.00018578,2]
[358427793,1745139032064,-282.68750321,0.00018678,2]
[358427798,1745139032105,-690.6960028,0.00018678,2]
[358427799,1745139032115,-1000.0,0.00019,5]
[358427800,1745139032124,-160.0,0.00019,5]
[358427801,1745139032134,-500.0,0.00019041,2]
[358427802,1745139032143,-290.5860477,0.000191,2]
[358427803,1745139032153,-668.9527807,0.000191,2]
[358427804,1745139032163,-300.0,0.00019176,2]
[358427805,1745139032172,-300.0,0.00019176,2]
[358427806,1745139032181,-300.0,0.00019176,2]
[358427807,1745139032191,-154.257,0.00019177,2]
[358427808,1745139032200,-500.0,0.00019177,2]
[358427809,1745139032209,-500.0,0.00019177,2]
[358427810,1745139032219,-392.44776392,0.00019177,2]
[358427811,1745139032229,-167.04286692,0.00019177,2]
[358427812,1745139032239,-500.0,0.00019177,2]
[358427813,1745139032249,-500.0,0.00019177,2]
[358427814,1745139032259,-363.73226665,0.00019177,2]
[358427815,1745139032268,-337.09917045,0.00019177,2]
[358427816,1745139032278,-500.0,0.00019178,2]
[358427817,1745139032288,-500.0,0.00019178,2]
[358427818,1745139032300,-500.0,0.00019178,2]
[358427819,1745139032310,-500.0,0.00019178,2]
[358427820,1745139032319,-500.0,0.00019178,2]
[358427821,1745139032329,-500.0,0.00019178,2]
[358427822,1745139032339,-551.86,0.00019178,2]
[358427823,1745139032348,-500.0,0.00019178,2]
[358427824,1745139032357,-500.0,0.00019178,2]
[358427825,1745139032368,-575.24,0.00019178,2]
[358427826,1745139032377,-500.0,0.00019178,2]
[358427827,1745139032388,-500.0,0.00019178,2]
[358427828,1745139032397,-500.0,0.00019178,2]
[358427829,1745139032406,-500.0,0.00019178,2]
[358427830,1745139032416,-538.73,0.00019178,2]
[358427831,1745139032426,-500.0,0.00019178,2]
[358427832,1745139032436,-464.68787402,0.00019178,2]
[358427838,1745139038318,-250.50212598,0.00019178,2]
[358427840,1745139038329,-500.0,0.00019178,2]
[358427841,1745139038339,-522.84747784,0.00019178,2]
[358427842,1745139038349,-500.0,0.00019178,2]
[358427843,1745139038358,-500.0,0.00019178,2]
[358427844,1745139038369,-500.0,0.00019178,2]
[358427845,1745139038378,-500.0,0.00019178,2]
[358427846,1745139038388,-500.0,0.00019178,2]
[358427847,1745139038399,-500.0,0.00019178,2]
[358427848,1745139038408,-970.77,0.00019178,2]
[358427849,1745139038418,-500.0,0.00019178,2]
[358427850,1745139038427,-500.0,0.00019178,2]
[358427851,1745139038436,-254.96709374,0.00019178,2]
[358427852,1745139038446,-629.34,0.00019178,2]
[358427853,1745139038455,-500.0,0.00019178,2]
[358427854,1745139038465,-500.0,0.00019178,2]
[358427855,1745139038475,-500.0,0.00019178,2]
[358427856,1745139038484,-500.0,0.00019178,2]
[358427857,1745139038495,-500.0,0.00019178,2]
[358427858,1745139038505,-500.0,0.00019178,2]
[358427859,1745139038515,-500.0,0.00019178,2]
[358427860,1745139038525,-500.0,0.00019178,2]
[358427861,1745139038535,-500.0,0.00019178,2]
[358427862,1745139038546,-500.0,0.00019178,2]
[358427863,1745139038556,-500.0,0.00019178,2]
[358427864,1745139038566,-500.0,0.00019178,2]
[358427865,1745139038576,-737.1,0.00019178,2]
[358427866,1745139038587,-500.0,0.00019178,2]
[358427867,1745139038596,-500.0,0.00019178,2]
[358427868,1745139038606,-500.0,0.00019178,2]
[358427869,1745139038615,-500.0,0.00019178,2]
[358427870,1745139038625,-500.0,0.00019178,2]
[358427871,1745139038634,-500.0,0.00019178,2]
[358427872,1745139038643,-500.0,0.00019178,2]
[358427873,1745139038653,-500.0,0.00019178,2]
[358427874,1745139038662,-500.0,0.00019178,2]
[358427875,1745139038671,-500.0,0.00019178,2]
[358427876,1745139038681,-500.0,0.00019178,2]
[358427877,1745139038690,-500.0,0.00019178,2]
[358427878,1745139038699,-500.0,0.00019178,2]
[358427879,1745139038709,-500.0,0.00019178,2]
[358427880,1745139038718,-500.0,0.00019178,2]
[358427881,1745139038728,-500.0,0.00019178,2]
[358427882,1745139038738,-500.0,0.00019178,2]
[358427883,1745139038747,-287.20257378,0.00019178,2]
[358427884,1745139038757,-500.0,0.00019178,2]
[358427885,1745139038766,-500.0,0.00019178,2]
[358427886,1745139038776,-500.0,0.00019178,2]
[358427887,1745139038786,-500.0,0.00019178,2]
[358427888,1745139038795,-500.0,0.00019178,2]
[358427889,1745139038805,-500.0,0.00019178,2]
[358427890,1745139038814,-500.0,0.00019178,2]
[358427891,1745139038824,-512.2,0.00019178,2]
[358427892,1745139038834,-500.0,0.00019178,2]
[358427893,1745139038843,-500.0,0.00019178,2]
[358427894,1745139038853,-572.66,0.00019178,2]
[358427895,1745139038862,-500.0,0.00019178,2]
[358427896,1745139038872,-550.6,0.00019178,2]
[358427897,1745139038881,-500.0,0.00019178,2]
[358427898,1745139038891,-500.0,0.00019178,2]
[358427899,1745139038900,-500.0,0.00019178,2]
[358427900,1745139038910,-500.0,0.00019178,2]
[358427901,1745139038919,-500.0,0.00019178,2]
[358427902,1745139038929,-500.0,0.00019178,2]
[358427903,1745139038939,-1773.84,0.00019178,2]
[358427904,1745139038948,-500.0,0.00019178,2]
[358427905,1745139038958,-853.14,0.00019178,2]
[358427906,1745139038967,-500.0,0.00019178,2]
[358427907,1745139038976,-1500.83,0.00019178,2]
[358427908,1745139038985,-500.0,0.00019178,2]
[358427909,1745139038994,-500.0,0.00019178,2]
[358427910,1745139039004,-500.0,0.00019178,2]
[358427911,1745139039014,-5098.07,0.00019178,2]
[358427912,1745139039023,-500.0,0.00019178,2]
[358427913,1745139039032,-552.45,0.00019178,2]
[358427914,1745139039042,-500.0,0.00019178,2]
[358427915,1745139039051,-713.3,0.00019178,2]
[358427916,1745139039060,-1368.21,0.00019178,2]
[358427917,1745139039069,-500.0,0.00019178,2]
[358427918,1745139039078,-574.7,0.00019178,2]
[358427919,1745139039087,-500.0,0.00019178,2]
[358427920,1745139039097,-500.0,0.00019178,2]
[358427921,1745139039107,-582.48,0.00019178,2]
[358427922,1745139039116,-500.0,0.00019178,2]
[358427923,1745139039125,-2242.03,0.00019178,2]
[358427924,1745139039135,-500.0,0.00019178,2]
[358427925,1745139039144,-500.0,0.00019178,2]
[358427926,1745139039155,-3269.52,0.00019178,2]
[358427927,1745139039164,-500.0,0.00019178,2]
[358427928,1745139039174,-500.0,0.00019178,2]
[358427929,1745139039183,-500.0,0.00019178,2]
[358427930,1745139039193,-398.00051511,0.00019178,2]
[358427931,1745139039202,-1839.12,0.00019178,2]
[358427932,1745139039211,-500.0,0.00019178,2]
[358427933,1745139039220,-500.0,0.00019178,2]
[358427934,1745139039229,-500.0,0.00019178,2]
[358427935,1745139039238,-500.0,0.00019178,2]
[358427936,1745139039247,-500.0,0.00019178,2]
[358427937,1745139039256,-768.54,0.00019178,2]
[358427938,1745139039266,-10219.21,0.00019178,2]
[358427939,1745139039275,-500.0,0.00019178,2]
[358427940,1745139039284,-500.0,0.00019178,2]
[358427941,1745139039293,-636.83,0.00019178,2]
[358427942,1745139039306,-500.0,0.00019178,2]
[358427943,1745139039315,-500.0,0.00019178,2]
[358427944,1745139039324,-3599.85,0.00019178,2]
[358427945,1745139039334,-1000.85,0.00019178,2]
[358427946,1745139039343,-500.0,0.00019178,2]
[358427947,1745139039353,-500.0,0.00019178,2]
[358427948,1745139039362,-1000.0,0.00019178,2]
[358427949,1745139039371,-1244.22,0.000192,2]
[358427950,1745139039380,-590.8495724,0.000192,2]
[358427951,1745139039391,-1500.0,0.00019315,2]
[358427952,1745139039400,-151.0,0.0001934,2]
[358427953,1745139039409,-207.4,0.0001934,2]
[358427954,1745139039418,-214.98544248,0.00019351,2]
[358427955,1745139039427,-2405.19016028,0.00019352,2]
[358427956,1745139039441,-125899.64407913,0.00019352,2]
[358427957,1745139039460,-26404.65097584,0.00019352,2]
[358427958,1745139039472,-3838.47564121,0.00019352,2]
[358427967,1745139040684,-432.27611208,0.00019352,2]
[358427979,1745139043192,-500.0,0.00019178,2]
[358427980,1745139043202,-98535.01037849,0.00019352,2]
[358427986,1745139046213,-677.2,0.00019352,2]
[358427987,1745139046319,-902.97666268,0.00019352,2]
[358428002,1745139898887,305.72,0.00018,2]
[358428003,1745139921348,237.734004,0.00017852,2]
[358428004,1745140049844,251.3899291,0.00017924,2]
[358428034,1745140232438,-196.24817362,0.00018183,2]
[358428036,1745140232449,-300.0,0.00018283,2]
[358428038,1745140232459,-300.0,0.00018283,2]
[358428040,1745140232468,-300.0,0.00018283,2]
[358428042,1745140232477,-1017.54672776,0.00018284,2]
[358428045,1745140232490,-23882.45327224,0.00018284,2]
[358428046,1745140232499,-196.24817362,0.00018422,2]
[358428049,1745140232509,-196.24817362,0.00018661,2]
[358428051,1745140232519,-304.01078496,0.00018761,2]
[358428053,1745140232529,-155.6052105,0.000189,2]
[358428055,1745140232539,-164.77851232,0.000189,2]
[358428056,1745140232549,-4085.24231246,0.000189,2]
[358428059,1745140232560,-1719.0,0.00019,2]
[358428061,1745140232570,-1994.0,0.00019,2]
[358428063,1745140232580,-361.057997,0.00019,2]
[358428065,1745140232590,-308.0277835,0.00019,2]
[358428067,1745140232600,-361.057997,0.00019,2]
[358428069,1745140232609,-500.0,0.00019041,2]
[358428071,1745140232619,-162.307,0.00019173,2]
[358428073,1745140232628,-500.0,0.00019176,2]
[358428075,1745140232638,-500.0,0.00019176,2]
[358428077,1745140232648,-500.0,0.00019176,2]
[358428078,1745140232658,-500.0,0.00019176,2]
[358428079,1745140232669,-500.0,0.00019176,2]
[358428080,1745140232679,-500.0,0.00019176,2]
[358428081,1745140232689,-500.0,0.00019176,2]
[358428082,1745140232699,-500.0,0.00019176,2]
[358428083,1745140232708,-346.22961407,0.00019176,2]
[358428084,1745140232718,-500.0,0.00019177,2]
[358428085,1745140232729,-245.6571927,0.00019177,2]
[358428086,1745140232739,-500.0,0.00019178,2]
[358428087,1745140232749,-500.0,0.00019178,2]
[358428088,1745140232759,-500.0,0.00019178,2]
[358428089,1745140232769,-516.28,0.00019178,2]
[358428090,1745140232779,-500.0,0.00019178,2]
[358428091,1745140232788,-500.0,0.00019178,2]
[358428092,1745140232798,-500.0,0.00019178,2]
[358428093,1745140232808,-500.0,0.00019178,2]
[358428094,1745140232817,-603.12,0.00019178,2]
[358428095,1745140232827,-500.0,0.00019178,2]
[358428096,1745140232837,-500.0,0.00019178,2]
[358428097,1745140232847,-500.0,0.00019178,2]
[358428098,1745140232859,-500.0,0.00019178,2]
[358428099,1745140232868,-500.0,0.00019178,2]
[358428100,1745140232878,-625.24812081,0.00019178,2]
[358428101,1745140232888,-500.0,0.00019178,2]
[358428102,1745140232897,-500.0,0.00019178,2]
[358428103,1745140232907,-500.0,0.00019178,2]
[358428104,1745140232917,-500.0,0.00019178,2]
[358428105,1745140233138,-500.0,0.00019178,2]
[358428106,1745140233150,-500.0,0.00019178,2]
[358428107,1745140233161,-500.0,0.00019178,2]
[358428108,1745140233172,-500.0,0.00019178,2]
[358428109,1745140233185,-219.25415483,0.00019178,2]
[358428110,1745140233198,-500.0,0.00019178,2]
[358428111,1745140233210,-528.87,0.00019178,2]
[358428112,1745140233221,-500.0,0.00019178,2]
[358428113,1745140233232,-500.0,0.00019178,2]
[358428114,1745140233242,-500.0,0.00019178,2]
[358428115,1745140233253,-500.0,0.00019178,2]
[358428116,1745140233263,-500.0,0.00019178,2]
[358428117,1745140233273,-500.0,0.00019178,2]
[358428118,1745140233283,-500.0,0.00019178,2]
[358428119,1745140233293,-500.0,0.00019178,2]
[358428120,1745140233303,-500.0,0.00019178,2]
[358428121,1745140233313,-724.16,0.00019178,2]
[358428122,1745140233323,-500.0,0.00019178,2]
[358428123,1745140233333,-550.75,0.00019178,2]
[358428124,1745140233344,-500.0,0.00019178,2]
[358428125,1745140233354,-500.0,0.00019178,2]
[358428126,1745140233366,-500.0,0.00019178,2]
[358428127,1745140233376,-500.0,0.00019178,2]
[358428128,1745140233386,-500.0,0.00019178,2]
[358428129,1745140233397,-500.0,0.00019178,2]
[358428130,1745140233406,-500.0,0.00019178,2]
[358428131,1745140233416,-500.0,0.00019178,2]
[358428132,1745140233425,-500.0,0.00019178,2]
[358428133,1745140233436,-500.0,0.00019178,2]
[358428134,1745140233445,-930.32,0.00019178,2]
[358428135,1745140233455,-500.0,0.00019178,2]
[358428136,1745140233465,-500.0,0.00019178,2]